bitfinex/quotes_BTCUSD_20250608
["timestamp","ask_amount","ask_price","bid_price","bid_amount"]
[1749386000132,1.04704603,105710.0,105700.0,7.33682254]
[1749386000702,1.01872818,105710.0,105700.0,7.33682254]
[1749386001763,1.04707389,105710.0,105700.0,7.33682254]
[1749386002381,0.75731389,105710.0,105700.0,7.33682254]
[1749386004109,0.77503372,105710.0,105700.0,7.33682254]
[1749386005062,0.75731389,105710.0,105700.0,7.33682254]
[1749386005268,0.77503165,105710.0,105700.0,7.33682254]
[1749386005804,0.77503139,105710.0,105700.0,7.33682254]
[1749386006657,0.77503138,105710.0,105700.0,7.33682254]
[1749386006861,0.77502882,105710.0,105700.0,7.33682254]
[1749386007066,0.77502864,105710.0,105700.0,7.33682254]
[1749386008543,0.75731389,105710.0,105700.0,7.33682254]
[1749386008723,0.77502643,105710.0,105700.0,7.33682254]
[1749386008940,0.71951921,105710.0,105700.0,7.33682254]
[1749386009140,0.72269066,105710.0,105700.0,7.33682254]
[1749386009346,0.71951921,105710.0,105700.0,7.33682254]
[1749386009551,0.7372316,105710.0,105700.0,7.33682254]
[1749386009764,0.70888615,105710.0,105700.0,7.33682254]
[1749386009976,0.6893453,105710.0,105700.0,7.33682254]
[1749386010185,0.36588615,105710.0,105700.0,7.33682254]
[1749386010401,0.34320832,105710.0,105700.0,7.33682254]
[1749386010613,0.30024247,105710.0,105700.0,7.33682254]
[1749386010820,0.30024277,105710.0,105700.0,7.42550254]
[1749386011033,0.63824277,105710.0,105700.0,7.43496327]
[1749386011232,0.29424313,105710.0,105700.0,7.43496327]
[1749386011634,0.63624313,105710.0,105700.0,7.43496327]
[1749386011844,0.63424313,105710.0,105700.0,7.43496327]
[1749386012255,0.63524327,105710.0,105700.0,7.43496327]
[1749386012500,0.63624326,105710.0,105700.0,7.43496327]
[1749386012706,0.61853519,105710.0,105700.0,7.43496327]
[1749386012917,0.63624456,105710.0,105700.0,7.62417802]
[1749386013121,0.63624456,105710.0,105700.0,7.43496327]
[1749386013329,0.63622007,105710.0,105700.0,7.43496327]
[1749386013868,0.63622005,105710.0,105700.0,7.43496327]
[1749386014353,0.63622008,105710.0,105700.0,7.43496327]
[1749386014600,0.6362201,105710.0,105700.0,7.43496327]
[1749386014888,0.6362201,105710.0,105700.0,7.62417802]
[1749386015125,0.6362201,105710.0,105700.0,7.43496327]
[1749386015372,0.61853519,105710.0,105700.0,7.43496327]
[1749386015880,0.61853519,105710.0,105700.0,7.42550254]
[1749386031338,0.63621146,105710.0,105700.0,7.42550254]
[1749386031521,0.61853519,105710.0,105700.0,7.42550254]
[1749386032377,0.63621147,105710.0,105700.0,7.42550254]
[1749386032868,0.61853519,105710.0,105700.0,7.42550254]
[1749386033081,0.63621722,105710.0,105700.0,7.42550254]
[1749386034399,0.63621875,105710.0,105700.0,7.42550254]
[1749386034606,0.61853519,105710.0,105700.0,7.42550254]
[1749386034813,0.63621883,105710.0,105700.0,7.42550254]
[1749386035013,0.61853519,105710.0,105700.0,7.42550254]
[1749386035248,0.63622893,105710.0,105700.0,7.42550254]
[1749386035676,0.63622965,105710.0,105700.0,7.42550254]
[1749386036504,0.61853519,105710.0,105700.0,7.42550254]
[1749386036714,0.6362311,105710.0,105700.0,7.42550254]
[1749386037960,0.61853519,105710.0,105700.0,7.42550254]
[1749386038388,0.63626445,105710.0,105700.0,7.42550254]
[1749386038601,0.61853519,105710.0,105700.0,7.42550254]
[1749386039561,0.61853519,105710.0,105700.0,7.33682254]
[1749386039758,0.69009295,105710.0,105700.0,7.30462254]
[1749386039961,0.73481295,105710.0,105700.0,7.59302254]
[1749386040301,0.7631566,105710.0,105700.0,7.30462254]
[1749386040468,0.7631566,105710.0,105700.0,7.59314254]
[1749386040661,0.7631566,105710.0,105700.0,7.30462254]
[1749386040864,0.80093405,105710.0,105700.0,7.30462254]
[1749386041150,0.82927372,105710.0,105700.0,7.30462254]
[1749386042108,0.8009115,105710.0,105700.0,7.30462254]
[1749386042558,0.78320356,105710.0,105700.0,7.30462254]
[1749386042764,0.80091476,105710.0,105700.0,7.30462254]
[1749386043016,0.80089344,105710.0,105700.0,7.30462254]
[1749386043222,0.8008934,105710.0,105700.0,7.30462254]
[1749386043430,0.80089332,105710.0,105700.0,7.30462254]
[1749386044441,0.78320356,105710.0,105700.0,7.30462254]
[1749386044672,0.74540888,105710.0,105700.0,7.30462254]
[1749386054509,1.03384888,105710.0,105700.0,7.30462254]
[1749386054941,1.08384888,105710.0,105700.0,7.30462254]
[1749386055134,1.21000356,105710.0,105700.0,7.30462254]
[1749386057342,1.18167811,105710.0,105700.0,7.30462254]
[1749386058408,1.23836578,105710.0,105700.0,7.30462254]
[1749386058602,1.18167811,105710.0,105700.0,7.30462254]
[1749386059406,1.23836578,105710.0,105700.0,7.30462254]
[1749386059976,1.23736578,105710.0,105700.0,7.30462254]
[1749386060330,1.1995711,105710.0,105700.0,7.30462254]
[1749386060743,1.1985711,105710.0,105700.0,7.30462254]
[1749386060949,1.2025711,105710.0,105700.0,7.30462254]
[1749386061500,1.2045711,105710.0,105700.0,7.30462254]
[1749386062155,1.2025711,105710.0,105700.0,7.30462254]
[1749386062354,1.2065711,105710.0,105700.0,7.30462254]
[1749386066093,1.30297058,105710.0,105700.0,7.30462254]
[1749386066319,1.2065711,105710.0,105700.0,7.30462254]
[1749386066647,1.14988343,105710.0,105700.0,7.30462254]
[1749386066850,1.20642479,105710.0,105700.0,7.30462254]
[1749386067227,1.14988343,105710.0,105700.0,7.30462254]
[1749386068411,1.22545821,105710.0,105700.0,7.30462254]
[1749386069017,1.14988343,105710.0,105700.0,7.30462254]
[1749386069454,1.22545821,105710.0,105700.0,7.30462254]
[1749386070048,1.2065073,105710.0,105700.0,7.24782376]
[1749386073933,0.9180673,105710.0,105700.0,7.24782376]
[1749386074146,1.2061873,105710.0,105700.0,7.24782376]
[1749386076765,0.8297073,105710.0,105700.0,7.24782376]
[1749386076972,1.2056673,105710.0,105700.0,7.24782376]
[1749386077179,0.8297073,105710.0,105700.0,7.24782376]
[1749386077386,1.1893673,105710.0,105700.0,7.24782376]
[1749386080077,1.13274343,105710.0,105700.0,7.24782376]
[1749386080701,1.20831821,105710.0,105700.0,7.24782376]
[1749386085050,1.20831821,105710.0,105700.0,7.27842376]
[1749386085051,0.67564258,105710.0,105700.0,7.27842376]
[1749386085253,1.0204884,105710.0,105700.0,7.27842376]
[1749386085456,1.03502925,105710.0,105700.0,7.27842376]
[1749386085873,1.07281978,105710.0,105700.0,7.27842376]
[1749386086901,1.06881978,105710.0,105700.0,7.24782376]
[1749386087103,0.77665978,105710.0,105700.0,7.24782376]
[1749386087307,1.06673978,105710.0,105700.0,7.24782376]
[1749386087511,1.06873978,105710.0,105700.0,7.26282376]
[1749386087716,1.06873978,105710.0,105700.0,7.27842376]
[1749386088402,1.01201396,105710.0,105700.0,7.27842376]
[1749386088641,1.04034127,105710.0,105700.0,7.27842376]
[1749386089692,0.39776042,105710.0,105700.0,7.56642376]
[1749386089909,0.30895519,105710.0,105700.0,7.56642376]
[1749386090412,0.66349604,105710.0,105700.0,7.56642376]
[1749386090718,0.28599485,105710.0,105700.0,7.77455988]
[1749386090933,0.28599485,105710.0,105700.0,7.78402043]
[1749386091144,0.10625739,105710.0,105700.0,7.7954808]
[1749386091352,0.63545424,105710.0,105700.0,7.7954808]
[1749386091967,0.63545424,105710.0,105700.0,7.78602043]
[1749386092304,0.63545424,105710.0,105700.0,7.79548072]
[1749386092510,0.62599485,105710.0,105700.0,7.78602043]
[1749386093302,0.61653519,105710.0,105700.0,7.77655988]
[1749386094066,0.61653519,105710.0,105700.0,7.76709924]
[1749386094494,0.63107604,105710.0,105700.0,7.36838376]
[1749386094727,0.63107604,105710.0,105700.0,7.65650376]
[1749386097048,0.63107604,105710.0,105700.0,7.28042376]
[1749386097276,0.63107604,105710.0,105700.0,7.65670376]
[1749386097495,0.61653519,105710.0,105700.0,7.28042376]
[1749386097668,0.61653519,105710.0,105700.0,7.65694376]
[1749386099639,0.61653519,105710.0,105700.0,7.28042376]
[1749386099852,0.61653519,105710.0,105700.0,7.65702376]
[1749386100055,0.61653519,105710.0,105700.0,7.66648449]
[1749386100234,0.61653519,105710.0,105700.0,7.85569924]
[1749386100847,0.61653519,105710.0,105700.0,7.65702376]
[1749386118645,0.61653519,105710.0,105700.0,7.36834376]
[1749386118920,0.61653519,105710.0,105700.0,7.65730376]
[1749386121775,0.61653519,105710.0,105700.0,7.28042376]
[1749386121981,0.61653519,105710.0,105700.0,7.65770376]
[1749386124689,0.61653519,105710.0,105700.0,7.28042376]
[1749386124900,0.65377727,105710.0,105700.0,7.62694376]
[1749386125109,0.67027727,105710.0,105700.0,7.24982376]
[1749386125324,0.68627727,105710.0,105700.0,7.53696708]
[1749386127552,0.67027727,105710.0,105700.0,7.53696708]
[1749386130004,0.67027727,105710.0,105700.0,7.24820708]
[1749386130197,0.68567727,105710.0,105700.0,7.53680708]
[1749386130744,0.68567727,105710.0,105700.0,7.53580708]
[1749386130949,0.68567727,105710.0,105700.0,7.53480708]
[1749386131168,0.68667727,105710.0,105700.0,7.53480708]
[1749386133868,0.68667727,105710.0,105700.0,7.53484708]
[1749386134098,0.71510027,105710.0,105700.0,7.53484708]
[1749386135098,0.71510027,105710.0,105700.0,7.24620708]
[1749386135306,0.71510027,105710.0,105700.0,7.53480708]
[1749386135512,0.78114588,105710.0,105700.0,7.53480708]
[1749386135715,0.78114588,105710.0,105700.0,7.53476708]
[1749386136598,0.74335535,105710.0,105700.0,7.53476708]
[1749386137518,0.78114588,105710.0,105700.0,7.53484708]
[1749386138547,0.74335535,105710.0,105700.0,7.53484708]
[1749386138987,0.74335535,105710.0,105700.0,7.53480708]
[1749386139234,0.74335535,105710.0,105700.0,7.24620708]
[1749386139452,0.74335535,105710.0,105700.0,7.53480708]
[1749386139677,0.74335535,105710.0,105700.0,7.24620708]
[1749386139883,0.74335535,105710.0,105700.0,7.53476708]
[1749386140303,0.74335535,105710.0,105700.0,7.24620708]
[1749386140713,0.78114588,105710.0,105700.0,7.53472708]
[1749386141272,0.78114588,105710.0,105700.0,7.24620708]
[1749386143420,1.06958588,105710.0,105700.0,7.24620708]
[1749386146407,1.0913308,105710.0,105700.0,7.24620708]
[1749386146842,1.14801662,105710.0,105700.0,7.24620708]
[1749386147794,1.23629662,105710.0,105700.0,7.24620708]
[1749386149244,1.25465475,105710.0,105700.0,7.24620708]
[1749386149449,1.21686422,105710.0,105700.0,7.24620708]
[1749386149676,1.1601784,105710.0,105700.0,7.24620708]
[1749386149884,1.1591784,105710.0,105700.0,7.24620708]
[1749386150088,1.23475318,105710.0,105700.0,7.24620708]
[1749386150281,1.23875318,105710.0,105700.0,7.24620708]
[1749386150503,1.24175318,105710.0,105700.0,7.24620708]
[1749386151069,1.22339505,105710.0,105700.0,7.24620708]
[1749386151727,1.19782027,105710.0,105700.0,7.18940537]
[1749386152625,1.19382027,105710.0,105700.0,7.18940537]
[1749386152853,1.19082027,105710.0,105700.0,7.18940537]
[1749386153060,1.20282027,105710.0,105700.0,7.19140537]
[1749386153271,1.37479453,105710.0,105700.0,7.19140537]
[1749386153488,1.37479453,105710.0,105700.0,7.1752959]
[1749386153709,1.37479453,105710.0,105700.0,7.15978307]
[1749386154800,1.27839505,105710.0,105700.0,7.15978307]
[1749386155177,1.20282027,105710.0,105700.0,7.15978307]
[1749386158151,1.20282027,105710.0,105700.0,7.01300464]
[1749386158556,1.38439216,105710.0,105700.0,7.01300464]
[1749386161135,1.4280755,105710.0,105700.0,6.98005493]
[1749386161544,1.52447498,105710.0,105700.0,6.98005493]
[1749386161976,1.4280755,105710.0,105700.0,6.98005493]
[1749386163738,1.50365028,105710.0,105700.0,6.98005493]
[1749386164388,1.48198461,105710.0,105700.0,6.98005493]
[1749386165101,1.48198461,105710.0,105700.0,6.96513874]
[1749386165462,1.50365028,105710.0,105700.0,6.96513874]
[1749386165851,1.60004976,105710.0,105700.0,6.96513874]
[1749386166637,1.60004976,105710.0,105700.0,6.90832692]
[1749386168200,1.60004976,105710.0,105700.0,6.82310918]
[1749386169128,1.60104976,105710.0,105700.0,6.2700048]
[1749386169331,1.75067976,105710.0,105700.0,5.85914224]
[1749386169569,1.66359214,105710.0,105700.0,5.71936584]
[1749386169783,1.58801736,105710.0,105700.0,5.6383393]
[1749386169974,1.58801736,105710.0,105700.0,5.6363393]
[1749386169975,1.57601736,105710.0,105700.0,5.6363393]
[1749386170172,1.67857273,105710.0,105700.0,5.58879973]
[1749386170475,1.67057273,105710.0,105700.0,5.58779973]
[1749386170823,1.68057273,105710.0,105700.0,5.58879973]
[1749386171248,1.68057273,105710.0,105700.0,5.56999937]
[1749386171511,1.68757273,105710.0,105700.0,5.57099937]
[1749386171849,1.68057273,105710.0,105700.0,5.54733305]
[1749386172280,6.01337573,105710.0,105700.0,4.75851427]
[1749386172507,6.0193239,105710.0,105700.0,4.56171006]
[1749386172642,5.6426039,105710.0,105700.0,4.56171006]
[1749386172857,5.96551239,105710.0,105700.0,4.56171006]
[1749386173242,5.96551239,105710.0,105700.0,4.46071006]
[1749386173457,5.58287239,105710.0,105700.0,4.46071006]
[1749386173710,5.96551239,105710.0,105700.0,4.35971006]
[1749386173875,1.38636124,105710.0,105700.0,4.35971006]
[1749386174084,1.10372124,105710.0,105700.0,4.35971006]
[1749386174298,1.48632124,105710.0,105700.0,4.35971006]
[1749386174915,1.56159035,105710.0,105700.0,3.86351006]
[1749386175280,1.59372444,105710.0,105700.0,3.86351006]
[1749386175480,1.59012392,105710.0,105700.0,3.83951006]
[1749386175690,5.78334115,105710.0,105700.0,3.29325818]
[1749386175914,5.78334115,105710.0,105700.0,3.25807928]
[1749386177586,5.78334115,105710.0,105700.0,3.23407928]
[1749386177817,5.87789652,105710.0,105700.0,3.20544021]
[1749386178223,5.87789652,105710.0,105700.0,3.12019704]
[1749386179080,5.87744793,105710.0,105700.0,2.17982123]
[1749386179282,5.76063992,105710.0,105700.0,1.80522076]
[1749386179486,5.64884044,105710.0,105700.0,1.05251032]
[1749386179751,5.64884044,105710.0,105700.0,0.95791174]
[1749386181549,5.74523992,105710.0,105700.0,0.9387296]
[1749386181758,5.8393467,105710.0,105700.0,0.5347296]
[1749386181965,5.8393467,105710.0,105700.0,0.3184296]
[1749386182166,5.7393467,105710.0,105700.0,0.3017193]
[1749386182380,5.7393467,105710.0,105700.0,0.2007193]
[1749386182381,5.8393467,105710.0,105700.0,0.2007193]
[1749386183165,5.8393467,105710.0,105700.0,0.19444682]
[1749386184254,5.8383467,105710.0,105700.0,0.19444682]
[1749386189723,6.0383055,105710.0,105700.0,0.05236079]
[1749386189925,0.74930284,105690.0,105680.0,0.002]
[1749386190133,1.55144747,105690.0,105680.0,0.00247805]
[1749386190327,1.68063636,105690.0,105680.0,0.00247805]
[1749386190524,1.70908436,105690.0,105680.0,0.00247805]
[1749386191615,1.71508436,105690.0,105680.0,0.00347805]
[1749386191820,1.93329692,105690.0,105680.0,0.00347805]
[1749386191992,1.94029692,105690.0,105680.0,0.00447805]
[1749386192304,1.94017888,105690.0,105680.0,0.00447805]
[1749386192511,1.84017888,105690.0,105680.0,0.00447805]
[1749386192712,1.94017888,105690.0,105680.0,0.00447805]
[1749386193554,1.84017888,105690.0,105680.0,0.00447805]
[1749386193784,1.94017888,105690.0,105680.0,0.00447805]
[1749386194819,1.84017888,105690.0,105680.0,0.00447805]
[1749386194992,1.94017888,105690.0,105680.0,0.00447805]
[1749386195738,1.84611399,105690.0,105680.0,0.00447805]
[1749386196279,2.39171399,105690.0,105680.0,0.00447805]
[1749386196902,2.38531399,105690.0,105680.0,0.00447805]
[1749386197578,2.38531399,105690.0,105680.0,0.02077805]
[1749386197778,2.38531399,105690.0,105680.0,0.03587805]
[1749386199793,0.68480138,105670.0,105660.0,0.002]
[1749386199926,1.26375369,105670.0,105660.0,0.002]
[1749386200124,1.16944086,105670.0,105660.0,0.002]
[1749386200408,1.28401953,105670.0,105660.0,0.002]
[1749386200617,0.92422753,105670.0,105660.0,0.002]
[1749386200751,1.31226753,105670.0,105660.0,0.002]
[1749386201568,1.4059584,105670.0,105660.0,0.002]
[1749386201766,1.4069584,105670.0,105660.0,0.002]
[1749386202959,1.4069584,105670.0,105660.0,0.0324]
[1749386204829,1.56409737,105670.0,105660.0,0.0324]
[1749386205066,1.57863822,105670.0,105660.0,0.0173]
[1749386205292,1.52863822,105670.0,105660.0,0.002]
[1749386205511,1.52863822,105670.0,105660.0,0.033]
[1749386205512,1.57863822,105670.0,105660.0,0.033]
[1749386205923,1.57763822,105670.0,105660.0,0.033]
[1749386206306,1.58263822,105670.0,105660.0,0.033]
[1749386206731,1.58163822,105670.0,105660.0,0.033]
[1749386206947,1.58563822,105670.0,105660.0,0.033]
[1749386209953,0.69938164,105650.0,105610.0,0.0088]
[1749386210178,0.98253578,105650.0,105610.0,0.0088]
[1749386210591,0.87571493,105650.0,105610.0,0.0088]
[1749386210794,0.90197027,105650.0,105610.0,0.0088]
[1749386210979,0.97756054,105650.0,105610.0,0.0088]
[1749386211176,0.98056054,105650.0,105640.0,0.01084781]
[1749386211354,0.88828054,105650.0,105640.0,0.01084781]
[1749386211729,0.98056054,105650.0,105640.0,0.01084781]
[1749386212931,0.98056054,105650.0,105640.0,0.04204781]
[1749386215817,0.98056054,105650.0,105640.0,0.04713259]
[1749386215818,0.80167384,105650.0,105640.0,0.04713259]
[1749386216014,0.46167384,105650.0,105640.0,0.04204781]
[1749386216262,0.44279081,105650.0,105640.0,0.04204781]
[1749386216720,0.78279081,105650.0,105640.0,0.04204781]
[1749386217281,0.36059081,105650.0,105640.0,0.04204781]
[1749386217519,0.36060755,105650.0,105640.0,0.04204781]
[1749386217719,0.70060755,105650.0,105640.0,0.04204781]
[1749386217921,0.67215755,105650.0,105640.0,0.04204781]
[1749386218309,0.66915755,105650.0,105640.0,0.04736922]
[1749386218513,0.69748111,105650.0,105640.0,0.04736922]
[1749386218768,0.69948111,105650.0,105640.0,0.04736922]
[1749386221079,0.62948692,105650.0,105640.0,0.04836922]
[1749386221241,0.56896336,105650.0,105640.0,0.04836922]
[1749386222198,0.56896336,105650.0,105640.0,0.01716922]
[1749386222199,0.19456336,105650.0,105640.0,0.01716922]
[1749386222579,0.53456336,105650.0,105640.0,0.01716922]
[1749386226580,0.53456336,105650.0,105640.0,0.01953535]
[1749386226813,0.43816388,105650.0,105640.0,0.01953535]
[1749386227519,0.43816388,105650.0,105640.0,0.01716922]
[1749386227733,0.53456336,105650.0,105640.0,0.01716922]
[1749386227951,0.53356336,105650.0,105640.0,0.01184781]
[1749386228474,0.53456336,105650.0,105640.0,0.01184781]
[1749386244331,0.53456336,105650.0,105640.0,0.01084781]
[1749386249554,0.56288692,105650.0,105640.0,0.01084781]
[1749386250504,0.53456336,105650.0,105640.0,0.01321396]
[1749386250705,0.53456336,105650.0,105640.0,0.02464336]
[1749386252572,0.53456336,105650.0,105640.0,0.02227721]
[1749386256705,0.53456336,105650.0,105640.0,0.31527721]
[1749386259443,0.43816388,105650.0,105640.0,0.31527721]
[1749386263535,0.43816388,105650.0,105640.0,0.31327721]
[1749386264378,0.43816388,105650.0,105640.0,0.32781806]
[1749386264583,0.09816388,105650.0,105640.0,0.63247153]
[1749386264803,0.09816388,105650.0,105640.0,0.63247171]
[1749386265026,0.09816388,105650.0,105640.0,0.64193746]
[1749386265255,0.08869912,105650.0,105640.0,0.63247171]
[1749386265468,0.08769912,105650.0,105640.0,0.63247171]
[1749386266075,0.08669912,105650.0,105640.0,0.62300578]
[1749386266277,0.08769912,105650.0,105640.0,0.62600578]
[1749386267230,0.08869912,105650.0,105640.0,0.62900578]
[1749386267877,0.07923409,105650.0,105640.0,0.43021754]
[1749386268139,0.07923409,105650.0,105640.0,0.43968365]
[1749386269544,0.07923409,105650.0,105640.0,0.43021754]
[1749386269898,0.07923409,105650.0,105640.0,0.43988156]
[1749386275809,0.07923409,105650.0,105640.0,0.6386698]
[1749386276022,0.07923409,105650.0,105640.0,0.43988156]
[1749386276507,0.07923409,105650.0,105640.0,0.44934767]
[1749386276647,0.07923409,105650.0,105640.0,0.63866989]
[1749386276844,0.0886993,105650.0,105640.0,0.64813591]
[1749386277054,0.02092961,105650.0,105640.0,0.66706714]
[1749386277258,0.03985904,105650.0,105640.0,0.65760166]
[1749386277454,0.04932416,105650.0,105640.0,0.66706723]
[1749386277982,0.04832497,105650.0,105640.0,0.66406723]
[1749386278385,0.04832497,105650.0,105640.0,0.69643728]
[1749386278386,0.04932497,105650.0,105640.0,0.69643728]
[1749386278626,0.04932497,105650.0,105640.0,0.69343728]
[1749386278627,0.0388603,105650.0,105640.0,0.69343728]
[1749386278841,0.0398603,105650.0,105640.0,0.66906723]
[1749386280535,0.0398603,105650.0,105640.0,0.67853271]
[1749386282148,0.03039509,105650.0,105640.0,0.67853271]
[1749386283085,0.002,105650.0,105640.0,0.67853271]
[1749386283632,0.002,105650.0,105640.0,0.71623752]
[1749386283824,0.002,105650.0,105640.0,0.77278588]
[1749386284024,0.03785557,105660.0,105650.0,0.21769885]
[1749386284251,0.03785557,105660.0,105650.0,0.499947]
[1749386284887,0.02839143,105660.0,105650.0,0.499947]
[1749386285100,0.03785557,105660.0,105650.0,0.499947]
[1749386285279,0.03885557,105660.0,105650.0,0.503947]
[1749386285618,0.03985557,105660.0,105650.0,0.508947]
[1749386287390,0.03039143,105660.0,105650.0,0.508947]
[1749386287605,0.03985557,105660.0,105650.0,0.508947]
[1749386288748,0.02092747,105660.0,105650.0,0.52348785]
[1749386288991,0.01146369,105660.0,105650.0,0.52348785]
[1749386289188,0.02092747,105660.0,105650.0,0.52348785]
[1749386289895,0.01146369,105660.0,105650.0,0.52348785]
[1749386290115,0.01146369,105660.0,105650.0,0.56119266]
[1749386290351,0.21021395,105660.0,105650.0,0.45182323]
[1749386290557,0.21967862,105660.0,105650.0,0.80570327]
[1749386290766,0.21967862,105660.0,105650.0,0.79623842]
[1749386290974,0.21967862,105660.0,105650.0,0.81516812]
[1749386291182,0.21967862,105660.0,105650.0,0.82463279]
[1749386291379,0.03039206,105660.0,105650.0,0.83409737]
[1749386291586,0.03985628,105660.0,105650.0,0.83409737]
[1749386293241,0.03985628,105660.0,105650.0,0.86231225]
[1749386293729,0.03985628,105660.0,105650.0,0.90001706]
[1749386294475,0.03039206,105660.0,105650.0,0.90001706]
[1749386295228,0.02092747,105660.0,105650.0,0.90001706]
[1749386297982,0.02092738,105660.0,105650.0,0.90001706]
[1749386299129,0.0114636,105660.0,105650.0,0.90001706]
[1749386299327,0.02092738,105660.0,105650.0,0.90001706]
[1749386299479,0.03612738,105660.0,105650.0,0.90001706]
[1749386299686,0.07025539,105660.0,105650.0,0.90001706]
[1749386299885,0.0702553,105660.0,105650.0,0.90001706]
[1749386302391,0.07971944,105660.0,105650.0,0.90001706]
[1749386302560,0.0702553,105660.0,105650.0,0.90001706]
[1749386303081,0.06079125,105660.0,105650.0,0.90001706]
[1749386303290,0.0702553,105660.0,105650.0,0.90001706]
[1749386304411,0.06079125,105660.0,105650.0,0.90001706]
[1749386304614,0.0702553,105660.0,105650.0,0.90001706]
[1749386305218,0.06079125,105660.0,105650.0,0.90001706]
[1749386308815,0.06079125,105660.0,105650.0,0.95656542]
[1749386309237,0.05132738,105660.0,105650.0,0.95656542]
[1749386309959,0.06079134,105660.0,105650.0,0.95656542]
[1749386310697,0.05132738,105660.0,105650.0,0.95656542]
[1749386311299,0.06079134,105660.0,105650.0,0.95656542]
[1749386312309,0.05132738,105660.0,105650.0,0.95656542]
[1749386313648,0.05132738,105660.0,105650.0,0.91886061]
[1749386313843,0.07025521,105660.0,105650.0,0.91886061]
[1749386314387,0.06079125,105660.0,105650.0,0.91886061]
[1749386314592,0.0702553,105660.0,105650.0,0.91886061]
[1749386314795,0.06079125,105660.0,105650.0,0.91886061]
[1749386315216,0.07025539,105660.0,105650.0,0.91886061]
[1749386315373,0.0702553,105660.0,105650.0,0.91886061]
[1749386315583,0.07971944,105660.0,105650.0,0.91886061]
[1749386316046,0.0702553,105660.0,105650.0,0.91886061]
[1749386316169,0.06079125,105660.0,105650.0,0.91886061]
[1749386316380,0.07025539,105660.0,105650.0,0.91770061]
[1749386316581,0.0702553,105660.0,105650.0,0.91770061]
[1749386316793,0.07025539,105660.0,105650.0,0.91770061]
[1749386317003,0.0702553,105660.0,105650.0,0.91770061]
[1749386318195,0.05132738,105660.0,105650.0,0.91770061]
[1749386318615,0.0418636,105660.0,105650.0,0.91770061]
[1749386318835,0.0172,105660.0,105650.0,0.91770061]
[1749386319255,0.002,105660.0,105650.0,0.91770061]
[1749386320276,0.04936209,105670.0,105660.0,0.23221911]
[1749386320481,0.05882533,105670.0,105660.0,0.35244211]
[1749386320686,0.04936209,105670.0,105660.0,0.35244211]
[1749386320882,0.05882524,105670.0,105660.0,0.35244211]
[1749386321462,0.04793255,105670.0,105660.0,0.35244211]
[1749386321802,0.04793255,105670.0,105660.0,0.35544211]
[1749386322270,0.0573957,105670.0,105660.0,0.35544211]
[1749386322668,0.04793255,105670.0,105660.0,0.35544211]
[1749386322871,0.05739579,105670.0,105660.0,0.35544211]
[1749386323068,0.04793255,105670.0,105660.0,0.35544211]
[1749386323231,0.05739579,105670.0,105660.0,0.35544211]
[1749386323960,0.05062585,105670.0,105660.0,0.45184159]
[1749386324154,0.06008909,105670.0,105660.0,0.45184159]
[1749386324495,0.05062585,105670.0,105660.0,0.45184159]
[1749386324762,0.06008909,105670.0,105660.0,0.54116159]
[1749386325449,0.05062585,105670.0,105660.0,0.54116159]
[1749386325782,0.06008909,105670.0,105660.0,0.54116159]
[1749386326482,0.05062585,105670.0,105660.0,0.54116159]
[1749386326720,0.04116279,105670.0,105660.0,0.54116159]
[1749386326922,0.39122407,105680.0,105670.0,0.2321985]
[1749386327166,0.07014813,105680.0,105670.0,0.57025751]
[1749386327607,0.07961065,105680.0,105670.0,0.57025751]
[1749386328018,0.07014813,105680.0,105670.0,0.66665699]
[1749386328221,0.07014813,105680.0,105670.0,0.66865699]
[1749386328436,0.07014813,105680.0,105670.0,0.67065699]
[1749386328644,0.07014804,105680.0,105670.0,0.67065699]
[1749386329129,0.04176172,105680.0,105670.0,0.67065699]
[1749386329335,0.06068588,105680.0,105670.0,0.67065699]
[1749386330330,0.07014822,105680.0,105670.0,0.67065699]
[1749386331888,0.06068588,105680.0,105670.0,0.67065699]
[1749386332193,0.07014822,105680.0,105670.0,0.67065699]
[1749386332939,0.04176172,105680.0,105670.0,0.67065699]
[1749386333142,0.06068561,105680.0,105670.0,0.67065699]
[1749386333585,0.06068561,105680.0,105670.0,0.68007487]
[1749386333904,0.07014786,105680.0,105670.0,0.64222372]
[1749386334220,0.05122353,105680.0,105670.0,0.64222372]
[1749386334588,0.06068552,105680.0,105670.0,0.64222372]
[1749386335272,0.05122353,105680.0,105670.0,0.64222372]
[1749386335480,0.06068561,105680.0,105670.0,0.64222372]
[1749386335682,0.05122353,105680.0,105670.0,0.64222372]
[1749386335893,0.06068552,105680.0,105670.0,0.64222372]
[1749386336149,0.07014769,105680.0,105670.0,0.64222372]
[1749386336351,0.06068552,105680.0,105670.0,0.64222372]
[1749386336502,0.0701476,105680.0,105670.0,0.64222372]
[1749386339637,0.07960985,105680.0,105670.0,0.64222372]
[1749386341665,0.07960985,105680.0,105670.0,0.40905025]
[1749386341666,0.24047524,105680.0,105670.0,0.40905025]
[1749386342056,0.24047524,105680.0,105670.0,0.3946694]
[1749386342277,0.24047524,105680.0,105670.0,0.40921025]
[1749386344469,0.24047524,105680.0,105670.0,0.41061025]
[1749386344892,0.24047524,105680.0,105670.0,0.60934214]
[1749386345069,0.24047524,105680.0,105670.0,0.61880529]
[1749386345279,0.24047524,105680.0,105670.0,0.3960294]
[1749386345495,0.24047524,105680.0,105670.0,0.3959894]
[1749386345901,0.24047524,105680.0,105670.0,0.3960694]
[1749386351368,0.24047524,105680.0,105670.0,0.3958694]
[1749386351490,0.58047524,105680.0,105670.0,0.3958694]
[1749386351698,0.58047524,105680.0,105670.0,0.4092564]
[1749386355657,0.58047524,105680.0,105670.0,0.0288564]
[1749386355859,0.58047524,105680.0,105670.0,0.4092964]
[1749386356600,0.58047524,105680.0,105670.0,0.0288564]
[1749386356805,0.67687472,105680.0,105670.0,0.3196564]
[1749386357006,0.69952546,105680.0,105670.0,0.3196564]
[1749386359308,0.69952546,105680.0,105670.0,0.3196964]
[1749386360597,0.69952546,105680.0,105670.0,0.3196164]
[1749386360999,0.69952546,105680.0,105670.0,0.3196564]
[1749386362105,0.69952546,105680.0,105670.0,0.0288564]
[1749386362311,0.69952546,105680.0,105670.0,0.3196164]
[1749386363522,0.69952546,105680.0,105670.0,0.0288564]
[1749386367231,0.69952546,105680.0,105670.0,0.04830556]
[1749386369032,0.69952546,105680.0,105670.0,0.01634392]
[1749386369915,0.69952546,105680.0,105670.0,0.015427]
[1749386370151,0.69952546,105680.0,105670.0,0.013427]
[1749386370362,0.70052546,105680.0,105670.0,0.013427]
[1749386370581,0.70252546,105680.0,105670.0,0.013427]
[1749386370805,0.70252546,105680.0,105670.0,0.0438177]
[1749386375130,0.70252546,105680.0,105670.0,0.013427]
[1749386382137,0.73088956,105680.0,105670.0,0.013427]
[1749386384361,0.76868375,105680.0,105670.0,0.013427]
[1749386387546,0.76865659,105680.0,105670.0,0.013427]
[1749386394864,1.24691102,105680.0,105670.0,0.013427]
[1749386395080,1.21266416,105680.0,105670.0,0.013427]
[1749386395287,1.21600015,105680.0,105670.0,0.013427]
[1749386395697,1.21398814,105680.0,105670.0,0.013427]
[1749386396540,1.21698814,105680.0,105670.0,0.013427]